Cogmind - Beta 9.3 @@@ ROGUE MODE // 2019.12.28 @ 19:19:29 Player: 3.14 Result: Destroyed by YI-UF0 with YI-UF0's Doublenader Performance ------------- Evolutions (0) 0 Regions Visited (2) 400 Robots Destroyed (11) 55 Value Destroyed (188) 188 Prototype IDs (0) 0 Alien Tech Used (0) 0 Bonus (0) 0 TOTAL SCORE: 643 Bonus ------- None Cogmind --------- Core Integrity 0/250 Matter 290/300 Energy 95/100 System Corruption 0% Temperature Cool (0) Movement Core (50) Location -10/Mines Parts ------- > --- POWER (1) -------- (None) > --- PROPULSION (2) --- (None) > --- UTILITY (2) ------ (None) > --- WEAPON (2) ------- Assault Rifle > --- INVENTORY (4) ---- Aluminum Leg High-capacity Matter Pod (26) Light Assault Rifle Light Assault Rifle Peak State ------------ > --- POWER ------------ Ion Engine > --- PROPULSION ------- Light Treads Light Treads > --- UTILITY ---------- Improved Heat Sink Medium Storage Unit > --- WEAPON ----------- Beam Rifle Beam Rifle > --- INVENTORY -------- Light Nuclear Core Aluminum Leg Aluminum Leg High-capacity Matter Pod Assault Rifle Light Assault Rifle Light Assault Rifle Light Assault Rifle [Rating: 12] Favorites ----------- Power Ion Engine Engine Ion Engine Propulsion Light Treads Treads Light Treads Utility Small Storage Unit Device Improved Heat Sink Storage Small Storage Unit Protection Utility Shielding Weapon Beam Rifle Energy Gun Beam Rifle Ballistic Gun Light Assault Rifle Build | -11 -10 -10 ------- Run | Scr Mat Min Slots Evolved . | . . . Power . | . . . Propulsion . | . . . Utility . | . . . Weapon . | . . . Parts Attached 15 | 6 8 1 Power 2 | 1 1 . Engine 2 | 1 1 . Core . | . . . Reactor . | . . . Propulsion 2 | 2 . . Treads 2 | 2 . . Leg . | . . . Wheel . | . . . Hover . | . . . Flight . | . . . Utility 4 | 1 3 . Device 1 | . 1 . Storage 2 | 1 1 . Processor . | . . . Hackware . | . . . Protection 1 | . 1 . Artifact . | . . . Weapon 7 | 2 4 1 Energy Gun 4 | 1 3 . Energy Cannon . | . . . Ballistic Gun 3 | 1 1 1 Ballistic Cannon . | . . . Launcher . | . . . Special Weapon . | . . . Impact Weapon . | . . . Slashing Weapon . | . . . Piercing Weapon . | . . . Special Melee Weapon . | . . . Unidentified Prototypes . | . . . Parts Lost 2 | . 2 . Power 1 | . 1 . Propulsion . | . . . Utility . | . . . Weapon 1 | . 1 . Highest Loss Streak 2 | . 2 . Average Slot Usage (%) 96 | . 95 100 Engine 14 | . 14 14 Treads 28 | . 28 28 Device 9 | . 7 14 Storage 14 | . 14 14 Protection 1 | . 2 . Energy Gun 21 | . 17 28 Ballistic Gun 6 | . 10 . Naked Turns 1 | . . 1 Heaviest Build 20 | 10 20 20 Greatest Support 40 | 40 40 40 Greatest Overweight (x) . | . . . Average Overweight (x) . | . . . Largest Inventory Capacity 8 | 6 8 8 Average Capacity 6 | 5 6 7 Most Carried 8 | 4 7 8 Average Carried 5 | 2 5 7 Final Capacity 8 | 6 8 4 Final Carried 7 | 4 7 4 Class Distribution -------------------- 100% | Mutant Dominant Class ---------------- Mutant | -10/Materials Mutant | -10/Mines Resources | -11 -10 -10 ----------- Run | Scr Mat Min Matter Collected 384 | 260 92 32 Remotely . | . . . Salvage Created 450 | . 450 . Parts 21 | . 21 . Haulers Intercepted 1 | . 1 . Recyclers Shooed 1 | . 1 . Parts Field Recycled . | . . . Retrieved Matter . | . . . Parts Self-Destructed . | . . . Prevented . | . . . Kills | -11 -10 -10 ------- Run | Scr Mat Min Combat Hostiles Destroyed 4 | . 4 . Guns 4 | . 4 . Classes Destroyed 6 | 1 5 . Worker 2 | 1 1 . Tunneler 1 | . 1 . Hauler 1 | . 1 . Recycler 2 | . 2 . Watcher 1 | . 1 . Grunt 4 | . 4 . Best Kill Streak 4 | 1 4 . Combat Bots Only 2 | . 2 . Max Kills in Single Turn 2 | 1 2 . Gunslinging . | . . . Exploded . | . . . Melee . | . . . Uniques/NPCs Destroyed . | . . . Combat | -11 -10 -10 -------- Run | Scr Mat Min Damage Taken 677 | . 319 358 Core 252 | . 26 226 Absorbed by Shields . | . . . Core Remaining (%) 100 | 100 . . Volleys Fired 37 | . 37 . Largest 2 | . 2 . Hottest 112 | . 112 . Shots Fired 73 | . 73 . Gun 73 | . 73 . Cannon . | . . . Launcher . | . . . Special . | . . . Kinetic 32 | . 32 . Thermal 33 | . 33 . Explosive . | . . . Electromagnetic 8 | . 8 . Robot Hit Streak 9 | . 9 . Robot Miss Streak 2 | . 2 . Penetration Max . | . . . Secondary Targets . | . . . Shots Hit Robots 54 | . 54 . Core Hits 19 | . 19 . Critical Hits . | . . . Critical Kills . | . . . Critical Parts Destroyed . | . . . Melee Attacks . | . . . Impact . | . . . Slashing . | . . . Piercing . | . . . Sneak Attacks . | . . . Combat Hostiles . | . . . Follow-up Attacks . | . . . Damage Inflicted 599 | 5 594 . Guns 594 | . 594 . Cannons . | . . . Explosions . | . . . Melee . | . . . Ramming 5 | 5 . . Kinetic 202 | . 202 . Thermal 314 | . 314 . Explosive . | . . . Electromagnetic 78 | . 78 . Impact . | . . . Slashing . | . . . Piercing . | . . . Highest Corruption . | . . . Average Corruption . | . . . Corruption Purged . | . . . Overload Shots . | . . . Overflow Damage . | . . . Projectiles . | . . . Explosions . | . . . Melee . | . . . Knockbacks . | . . . Impact . | . . . Kinetic . | . . . Secondary . | . . . Self-Inflicted Damage . | . . . Shots . | . . . Rammed 1 | . . 1 Targets Rammed 2 | 1 . 1 Kicked . | . . . Crushed 1 | 1 . . Highest Temperature 155 | . 155 . Average Temperature 55 | . 55 . Received Heat Transfer 177 | . 177 . Siege Activations . | . . . Robots Corrupted . | . . . Combat Hostiles . | . . . Parts Fried . | . . . Impact Corruptions . | . . . Robots Melted . | . . . Combat Hostiles . | . . . Parts Melted . | . . . Heat Transferred 756 | . 756 . Parts Sabotaged . | . . . Parts Stolen . | . . . Parts Stripped . | . . . Power Chain Reactions . | . . . Missiles Intercepted . | . . . Alert | -11 -10 -10 ------- Run | Scr Mat Min Peak Influence 162 | . 162 . Average Influence 50 | . 87 . Maximum Alert Level . | . . . Low Security (%) 100 | 100 100 100 Level 1 . | . . . Level 2 . | . . . Level 3 . | . . . Level 4 . | . . . Level 5 . | . . . High Security . | . . . Max Security . | . . . Squads Dispatched 2 | . 2 . Investigation 1 | . 1 . Extermination . | . . . Reinforcement 1 | . 1 . Assault . | . . . Garrison . | . . . Intercept . | . . . Construction Impeded . | . . . Haulers Reinforced . | . . . Stealth | -11 -10 -10 --------- Run | Scr Mat Min Distress Signals 1 | . 1 . Communications Jammed . | . . . Distress Signals . | . . . Times Spotted 19 | . 13 6 Peak Tracking Total 6 | . 4 6 Tactical Retreats . | . . . Traps | -11 -10 -10 ------- Run | Scr Mat Min Traps Triggered 1 | . 1 . Indirectly . | . . . Trap Hack Attempts . | . . . Triggered . | . . . Disarmed . | . . . Reprogrammed . | . . . Reused . | . . . Traps Extracted . | . . . Installed . | . . . Triggered . | . . . Machines | -11 -10 -10 ---------- Run | Scr Mat Min Machines Disabled . | . . . Max in Single Turn . | . . . Machines Sabotaged . | . . . Garrisons Compromised . | . . . Overloaded Fab Kills . | . . . Fab Network Shutdowns . | . . . Hacking | -11 -10 -10 --------- Run | Scr Mat Min Machines Accessed 1 | . 1 . Terminals 1 | . 1 . Fabricators . | . . . Repair Stations . | . . . Recycling Units . | . . . Scanalyzers . | . . . Garrison Access . | . . . Total Hacks 1 | . 1 . Successful . | . . . Failed 1 | . 1 . Catastrophic 1 | . 1 . Database Lockouts . | . . . Manual 1 | . 1 . Terminals 1 | . 1 . Fabricators . | . . . Repair Stations . | . . . Recycling Units . | . . . Scanalyzers . | . . . Garrison Access . | . . . Terminal Hacks . | . . . Fabricator Hacks . | . . . Repair Station Hacks . | . . . Recycling Unit Hacks . | . . . Scanalyzer . | . . . Garrison Access Hacks . | . . . Unauthorized Hacks . | . . . Terminals . | . . . Fabricators . | . . . Repair Stations . | . . . Recycling Units . | . . . Scanalyzers . | . . . Garrison Access . | . . . Data Cores Recovered . | . . . Used . | . . . Hacking Detections 1 | . 1 . Full Trace Events . | . . . Feedback Events . | . . . Feedback Blocked . | . . . Robot Schematics Acquired . | . . . Robots Built . | . . . Matter . | . . . Time . | . . . Total Robot Build Rating . | . . . Part Schematics Acquired . | . . . Parts Built . | . . . Matter . | . . . Time . | . . . Total Part Build Rating . | . . . Parts Repaired . | . . . Time . | . . . Parts Recycled . | . . . Recycled Matter . | . . . Retrieved Matter . | . . . Retrieved Components . | . . . Parts Scanalyzed . | . . . Part Schematics Acquired . | . . . Parts Damaged . | . . . Bothacking | -11 -10 -10 ------------ Run | Scr Mat Min Used RIF Installer . | . . . Robots Hacked . | . . . Non-combat . | . . . Combat . | . . . Robot Hacks Applied . | . . . Relay Couplers Released . | . . . Robots Rewired . | . . . Allies Hacked . | . . . Hacks Repelled . | . . . Allies | -11 -10 -10 -------- Run | Scr Mat Min Total Allies . | . . . Largest Group . | . . . Highest-Rated Group . | . . . Highest-Rated Ally . | . . . Total Orders . | . . . Ally Attacks . | . . . Total Damage . | . . . Kills . | . . . Allies Corrupted . | . . . Allies Melted . | . . . Intel | -11 -10 -10 ------- Run | Scr Mat Min Robot Analysis Total . | . . . Derelict Logs Recovered . | . . . Drone Launches . | . . . Drone Recoveries . | . . . Exploration | -11 -10 -10 ------------- Run | Scr Mat Min Turns Passed 834 | 105 483 246 Spaces Moved 432 | 60 217 155 Core 10 | 4 . 6 Treads 422 | 56 217 149 Legs . | . . . Wheels . | . . . Hover . | . . . Flight . | . . . Fastest Speed 50 | 50 160 50 Average Speed 157 | 152 160 155 Slowest Speed 160 | 160 160 160 Overloaded Moves . | . . . Propulsion Burnouts . | . . . Robots Hopped . | . . . Cave-ins Triggered . | . . . Exploration Rate (%) 30 | 5 47 39 Regions Visited 2 Branch Regions 1 Pre-discovered Areas 1 | . . 1 Known Exits Taken . | . . . Unknown Exits Taken 2 | 1 1 . Scrap Searched 1 | . . 1 Spaces Dug . | . . . Terrain Destroyed . | . . . Melee . | . . . Projectile . | . . . AOE . | . . . Actions | -11 -10 -10 --------- Run | Scr Mat Min Total 514 | 70 286 158 Wait 13 | . 13 . Move 431 | 60 216 155 Hop . | . . . Pick Up 13 | 4 8 1 Fast Attach 8 | 6 1 1 Attach 3 | . 3 . Detach . | . . . Swap 4 | . 4 . Drop 4 | . 4 . Fire 37 | . 37 . Melee . | . . . Ram . | . . . Kick . | . . . Crush 1 | . . 1 Escape Stasis . | . . . Rewire . | . . . Trap . | . . . Miscellaneous . | . . . Route ------- -11/Scrapyard -10/Materials (discovered 2 exits: [*Mat] / [*Min]) -10/Mines (discovered 1 exit: [*Mat]) History --------- Turn | Location | Event 10 | -11/Scrapyard | Discovered new exit (range 16) 106 | -11/Scrapyard | Entered Materials 331 | -10/Materials | Build established: Mutant 405 | -10/Materials | Discovered new exit (range 15) 524 | -10/Materials | Discovered new exit (range 15) 589 | -10/Materials | Entered Mines 640 | -10/Mines | Learned location of Storage (-8) 738 | -10/Mines | Discovered new exit (range 12) 817 | -10/Mines | Assembled infested the area 830 | -10/Mines | Released all parts (7) 834 | -10/Mines | Core integrity fell below 50% 835 | -10/Mines | Core integrity fell below 20% 835 | -10/Mines | Destroyed by YI-UF0 with YI-UF0's Doublenader Last Messages --------------- 00751_ Acquired Hcp. Matter Pod. 00752_ Acquired 26 matter. 00817_ ALERT: Infestation in the mines, dispatching Demolisher response squad. 00819_ U-05 Engineer destroyed. 00829_ C-30 ARC bursts open, deploying its payload. 00829_ D-53 Grenadier unfolds itself. 00829_ K-01 Serf collects debris. 00830_ Released Med. Storage Unit. 00830_ Released Beam Rifle. 00830_ Released Imp. Heat Sink. 00830_ Released Ion Engine. 00830_ Released Lgt. Treads. 00831_ The unstable cave ceiling collapses. 00831_ Acquired Assault Rifle. 00833_ The unstable cave ceiling collapses. 00833_ Lgt. Treads crushed. 00833_ as-71075 destroyed. 00833_ K-01 Serf collects debris. 00834_ The unstable cave ceiling collapses. Map ----- +----------------------------------------------------+ | ???????????????????????????????????????##???### | | ??????????????????????????????????????## ????### | | ??????????????????????????????????????# ???##### | | ??????????????????????????????????????# ???# | | ??????????????????????????????????????# ???# ### | | ???????????????????????????????????????# ???# #?# | | ???????????????????????????????????????# #?## #?# | | ??????????????????????????????????????## ## ### | | ??????????????????????????????????????# | | ??????????????????????????????????????# | | ??????????????????????????????????????## ### | | ???????????????????????????????????????# #?? | | ?????????????????# ????????????????????## #?? | | ??????????????? # ????????????????????# ##?? | | ?????????????? ????????????????????# ##??? | | ?????????????? ???????????????????## ##???? | | ????????????? # ????????????????????## #????? | | ????????????? ag ???#########????????# #????# | | ????????????? #### ##??###### ###### | | ????????????? a # #??# | | ?????????????# % # ####r | | ?????????????# * d k######## | | ?????????????# =! d %" #??????# | | ????????????????????## #### ##??????## | | ????????????????????## #?# #????????## | | ????????????????????# @ ###?# #?????????# | | ???????????????????# ###??# #?????????? | | ???????????????? ## ####????# ###???????? | | ??????????????# ?##???#####!= #???????? | | ???????????? ?????## ! ##??????? | | ???????????? ## #????## ##?????? | | ???????????? ??## ##???## #?????? | | ????????????# ????###????## #?????? | | ????????????? ??????????### ##?????? | | ????????????? ??????????## ### ##?????? | | ?????????????? ???????????# ##?## ##????? | | ??????????????????????????# ##??# < ##???? | | ??????????????????????????## #### #???? | | ???????????????????????????### ## #???? | | ?????????????????????????????## ## ##???? | | ??????????????????????????????##### ##?###????? | | ??????????????????????????????????######?????????? | | ?????????????????????????????????????????????????? | | | | | | | | | | | | | | | +----------------------------------------------------+ Best States ------------- Heat Dissipation 39 Energy Generation 10 Energy Capacity 250 Matter Stores 300 Matter Capacity 300 Sight Range 16 Terrain Scan Density 10 Utility Shielding 33 Evasion (%) 40 Recoil Reduction 2 Item Schematics ----------------- None Robot Schematics ------------------ None Fabricated ------------ Nothing Alien Tech Used ----------------- None Achievements -------------- None Challenges ------------ None Game ------ Seed LayeredInertialChainsword Manual? 0 Play Time 00:05:40 Cumulative 409.4 hours Start 2019.12.28 @ 19:13:59 End 2019.12.28 @ 19:19:29 Sessions 1 Manual Loads 0 Difficulty Rogue Special Mode None Game No. 726 Rogue 726 Adventurer 0 Explorer 0 Win Type - Total 29 Types 22/0/3/3/1/0/0 Lore% 93 Gallery% 91 Achievement% 80 Wizard Run 0 Options --------- ASCII 1 Keyboard 0 Movement Numpad Keybinds 0 Fullscreen 0 Font 14/SmallcapsGlow Map View 76x50 Tactical HUD 1 Map Filters NONE Filters NONE Steam 1 RUN: f7f635dc-c88d-48ef-976a-95d742aafdbf